{"text_format":"1","workbook":"xlsx","n_sheets":6,"sheets":["Front Sheet","Notes","Page 1","Page 2","Page 3","XML"],"not_rendered":{"charts":0,"images":1,"macros":1,"external_links":0,"defined_names":4,"comments":0,"pivot_tables":0},"unopened":[],"bounds":{"document_bytes":16777216,"sheet_cells":100000,"rows_first":2000,"rows_last":500,"rows_between":2000,"halvings":0,"cell_chars":16384,"cell_head_chars":4096},"cells_cut":0,"cells_raw":0,"read":"whole","date_system":"1900"}

{"sheet":"Front Sheet","index":0,"n_rows":44,"n_cols":12,"rows_kept":44,"cut":false,"hidden":false,"merged":[[43,0,43,1],[4,14,4,15],[16,1,16,2],[6,3,6,4],[12,3,12,4],[9,3,9,4],[18,1,18,2]]}
["V3 effective March 2021",null,null,null,null,null,null,null,null,null,null,"Form NL"]
["Term Funding Scheme with additional incentives for SMEs (TFSME)"]
[]
["Reporting institution Name:"]
[]
[]
["Reporting Institution Code:"]
[null,null,null,"4 digit code"]
[]
["Reporting Date as at :"]
[null,null,null,"DD/MM/YYYY"]
[]
[null,null,null,{"$f":"IF(D10<>\"\",EOMONTH(D10,-1)+1,\"\")","v":""}]
[]
[null,null,null,null,"£000s"]
[null,null,null,null,"Sterling","item ","validation"]
[25,"Total net lending in the reporting period",null,null,null,25,"25=2 + 10 +  18 - 18A1 - 18B1 - 18C1"]
[]
[26,"Total net lending to SMEs and certain non-bank credit providers in the reporting period",null,null,null,26,"26=2A + 10A + 18A +18B - 18A1 - 18B1"]
[]
[]
["Notes on Completion"]
[]
["Please send this form to NLFormReporting@bankofengland.co.uk  using secure email."]
[]
["n.b. most reporting institutions already have secure email arrangements with the Bank, including TLS and PGP Encryption.  "]
["The Bank will work with reporting institutions to ensure that at least one of these methods is available to them. "]
["If you have questions please contact the Data Reception team (DataReception@bankofengland.co.uk)."]
[]
["If you have any technical difficulties completing this form, or have any subsequent amendments after "]
["submission, please telephone the Data Reception Team on 020 7601 5360 or email NLFormReporting@bankofengland.co.uk.  "]
[]
[1,"Enter amounts to the nearest thousand, omitting £000s."]
[]
[2,"Ensure all boxes are populated and there are no formulae in any box."]
[]
[3,"There is no set date for submission. Forms should be submitted by the 5th working day of the "]
[null,"second month after the reporting period end. Email to NLFormReporting@bankofengland.co.uk."]
[]
[4,"Guidance for filling this form is available at "]
[null,"https://www.bankofengland.co.uk/markets/bank-of-england-market-operations-guide/documentation"]
[]
["Bank of England use only"]
["System ID:",null,"MFSD-M"]

{"sheet":"Notes","index":1,"n_rows":29,"n_cols":2,"rows_kept":29,"cut":false,"hidden":false,"merged":[]}
["Technical Notes"]
[]
[1,"Please provide an estimate of your net lending to small and medium sized enterprises (SMEs)"]
[null,"for the quarter in cell E47 of section 2.  "]
[null,"This should be based on the information provided in rows 2A and 10A of this form.  "]
[]
[2,"Corporate SMEs are defined here as private non-financial corporations with annual debit "]
[null,"account turnover on the (bank or building society) main business account of less than £25 million.  "]
[null,"Reporters can contact NLFormReporting@bankofengland.co.uk for further clarification."]
[]
[3,"SMEs are defined here as both private non-financial corporations with annual debit account "]
[null,"turnover on the (bank or building society) main business account of less than £25 million"]
[null,"(i.e. Corporate SMEs) and unincorporated businesses. "]
[]
[]
["Notes on Completion"]
["If you have any technical difficulties completing this form, or have any subsequent amendments after "]
["submission, please telephone the Data and Statistics Division's Data Reception Team   "]
["on 020 7601 5360 or email NLFormReporting@bankofengland.co.uk. "]
[]
["Please send this form using PGP email and submit both Excel and PDF versions."]
[]
[4,"Enter amounts to the nearest thousand, omitting £000s."]
[]
[5,"There is no set date for submission. Forms should be submitted by the 5th working day of the "]
[null,"second month after the reporting period end. Email to NLFormReporting@bankofengland.co.uk."]
[]
[6,"Guidance for filling this form is available at "]
[null,"https://www.bankofengland.co.uk/markets/bank-of-england-market-operations-guide/documentation"]

{"sheet":"Page 1","index":2,"n_rows":46,"n_cols":7,"rows_kept":46,"cut":false,"hidden":false,"merged":[[27,1,27,2],[29,1,29,2],[16,1,16,2],[35,1,35,2],[18,1,18,2],[20,1,20,2],[25,1,25,2],[6,1,6,2],[8,1,8,2],[10,1,10,2],[12,1,12,2],[14,1,14,2],[43,1,43,2],[31,1,31,2],[33,1,33,2],[39,1,39,2],[37,1,37,2],[41,1,41,2]]}
["Form NL"]
[]
[null,"SECTION 1: Total loans to non-financial corporations other than public corporations "]
[]
[null,null,null,null,"£000s"]
[null,null,null,null,"Sterling","item ","validation"]
[1,"Amount outstanding at previous reporting date",null,null,null,1]
[]
["1A","   of which: corporate SMEs (unweighted)",null,null,null,"1A"]
[]
[2,"Net lending in the reporting period",null,null,null,2,"2=5-6"]
[]
["2A","   of which: corporate SMEs (unweighted)",null,null,null,"2A","2A=5A-6A"]
[]
[3,"Adjustments to the amount outstanding: reductions (-) and increases (+) ",null,null,null,3,"3=7+8A+8B"]
[]
["3A","   of which: corporate SMEs (unweighted)",null,null,null,"3A","3A=7A+8A1+8B1"]
[]
[4,"Amount outstanding at current reporting date",null,null,null,4,"4=1+2+3"]
[]
["4A","   of which corporate SMEs (unweighted)",null,null,null,"4A","4A=1A+2A+3A"]
[]
[]
[null,"Supplementary items"]
[]
[5,"Gross lending in the reporting period",null,null,null,5]
[]
["5A","   of which: corporate SMEs (unweighted)",null,null,null,"5A"]
[]
[6,"Repayments in the reporting period",null,null,null,6]
[]
["6A","   of which: corporate SMEs (unweighted)",null,null,null,"6A"]
[]
[7,"Net loan sales (-), purchases (+) and other transfers during the reporting period",null,null,null,7]
[]
["7A","   of which: corporate SMEs (unweighted)",null,null,null,"7A"]
[]
["8A","Write-offs",null,null,null,"8A"]
[]
["8A1","   of which: corporate SMEs (unweighted)",null,null,null,"8A1"]
[]
["8B","Other adjustments (excl. write-offs) to the amount outstanding: reductions (-) and increases (+) ",null,null,null,"8B"]
[]
["8B1","   of which: corporate SMEs (unweighted)",null,null,null,"8B1"]
[]
[null,"Please see Technical Note 2 for more details on the definition of corporate SMEs."]

{"sheet":"Page 2","index":3,"n_rows":47,"n_cols":7,"rows_kept":47,"cut":false,"hidden":false,"merged":[[43,1,43,2],[41,1,41,2],[18,1,18,2],[20,1,20,2],[25,1,25,2],[27,1,27,2],[29,1,29,2],[37,1,37,2],[16,1,16,2],[35,1,35,2],[39,1,39,2],[6,1,6,2],[8,1,8,2],[10,1,10,2],[12,1,12,2],[14,1,14,2],[31,1,31,2],[33,1,33,2]]}
["Form NL"]
[]
[null,"SECTION 2: Total loans to individuals and individual trusts, unincorporated businesses and non-profit"]
[null,"                    institutions serving households"]
[null,null,null,null,"£000s"]
[null,null,null,null,"Sterling","item","validation"]
[9,"Amount outstanding at previous reporting date",null,null,null,9]
[]
["9A","   of which: unincorporated businesses (unweighted)",null,null,null,"9A"]
[]
[10,"Net lending in the reporting period",null,null,null,10,"10=13-14"]
[]
["10A","   of which: unincorporated businesses (unweighted)",null,null,null,"10A","10A=13A-14A"]
[]
[11,"Adjustments to the amount outstanding: reductions (-) and increases (+) ",null,null,null,11,"11=15+16A+16B"]
[]
["11A","   of which: unincorporated businesses (unweighted)",null,null,null,"11A","11A=15A+16A1+16B1"]
[]
[12,"Amount outstanding at current reporting date",null,null,null,12,"12=9+10+11"]
[]
["12A","   of which: unincorporated businesses (unweighted)",null,null,null,"12A","12A=9A+10A+11A"]
[]
[]
[null,"Supplementary items"]
[]
[13,"Gross lending in the reporting period",null,null,null,13]
[]
["13A","   of which: unincorporated businesses (unweighted)",null,null,null,"13A"]
[]
[14,"Repayments in the reporting period",null,null,null,14]
[]
["14A","   of which: unincorporated businesses (unweighted)",null,null,null,"14A"]
[]
[15,"Net loan sales (-), purchases (+) and other transfers during the reporting period",null,null,null,15]
[]
["15A","   of which: unincorporated businesses (unweighted)",null,null,null,"15A"]
[]
["16A","Write-offs ",null,null,null,"16A"]
[]
["16A1","   of which: unincorporated businesses (unweighted)",null,null,null,"16A1"]
[]
["16B","Other adjustments (excl. write-offs) to the amount outstanding: reductions (-) and increases (+) ",null,null,null,"16B"]
[]
["16B1","   of which: unincorporated businesses (unweighted)",null,null,null,"16B1"]
[]
[]
[27,null,"Total net lending to SMEs (unweighted)",null,null,27,"27=2A+ 10A"]

{"sheet":"Page 3","index":4,"n_rows":90,"n_cols":7,"rows_kept":90,"cut":false,"hidden":false,"merged":[[83,1,83,2],[87,1,87,2],[6,1,6,2],[21,1,21,2],[36,1,36,2],[38,1,38,2],[55,1,55,2],[69,1,69,2],[40,1,40,2],[42,1,42,2],[44,1,44,2],[46,1,46,2],[48,1,48,2],[50,1,50,2],[8,1,8,2],[16,1,16,2],[12,1,12,2],[10,1,10,2],[14,1,14,2],[33,1,33,2],[23,1,23,2],[25,1,25,2],[27,1,27,2],[29,1,29,2],[31,1,31,2],[18,1,18,2],[57,1,57,2],[59,1,59,2],[61,1,61,2],[63,1,63,2],[65,1,65,2],[81,1,81,2],[67,1,67,2],[71,1,71,2],[73,1,73,2],[75,1,75,2],[77,1,77,2],[79,1,79,2]]}
["Form NL"]
[]
[null,"SECTION 3: Total loans to financial leasing corporations, factoring corporations, mortgage and housing"]
[null,"                   credit corporations (excluding Special Purpose Vehicles related to securitisation)"]
[null,null,null,null,"£000s"]
[null,null,null,null,"Sterling","item","validation"]
[17,"Amount outstanding at previous reporting date",null,null,null,17,"17=17A+17B+17C"]
[]
["17A","Finance leasing corporations",null,null,null,"17A"]
[]
["17A1","   of which: intra-group, financial leasing corporations",null,null,null,"17A1"]
[]
["17B","Factoring corporations",null,null,null,"17B"]
[]
["17B1","   of which: intra-group, factoring corporation",null,null,null,"17B1"]
[]
["17C","Mortgage and housing credit corporations",null,null,null,"17C"]
[]
["17C1","   of which: intra-group, mortgage and houding credit corporations",null,null,null,"17C1"]
[]
[]
[18,"Net lending in the reporting period",null,null,null,18,"18=18A+18B+18C"]
[]
["18A","Finance leasing corporations",null,null,null,"18A","18A=21A-22A"]
[]
["18A1","   of which: intra-group, financial leasing corporations",null,null,null,"18A1","18A1=21A1-22A1"]
[]
["18B","Factoring corporations",null,null,null,"18B","18B=21B-22B"]
[]
["18B1","   of which: intra-group, factoring corporation",null,null,null,"18B1","18B1=21B1-22B1"]
[]
["18C","Mortgage and housing credit corporations",null,null,null,"18C","18C=21C-22C"]
[]
["18C1","   of which: intra-group, mortgage and houding credit corporations",null,null,null,"18C1","18C1=21C1-22C1"]
[]
[]
[19,"Adjustments to the amount outstanding: reductions (-) and increases (+) ",null,null,null,19,"19=23+24"]
[]
[20,"Amount outstanding at current reporting date",null,null,null,20,"20=17+18+19"]
[]
["20A","Finance leasing corporations",null,null,null,"20A"]
[]
["20A1","   of which: intra-group, financial leasing corporations",null,null,null,"20A1"]
[]
["20B","Factoring corporations",null,null,null,"20B"]
[]
["20B1","   of which: intra-group, factoring corporation",null,null,null,"20B1"]
[]
["20C","Mortgage and housing credit corporations",null,null,null,"20C"]
[]
["20C1","   of which: intra-group, mortgage and houding credit corporations",null,null,null,"20C1"]
[]
[]
[null,"Supplementary items"]
[]
[21,"Gross lending in the reporting period",null,null,null,21,"21=21A+21B+21C"]
[]
["21A","Finance leasing corporations",null,null,null,"21A"]
[]
["21A1","   of which: intra-group, financial leasing corporations",null,null,null,"21A1"]
[]
["21B","Factoring corporations",null,null,null,"21B"]
[]
["21B1","   of which: intra-group, factoring corporation",null,null,null,"21B1"]
[]
["21C","Mortgage and housing credit corporations",null,null,null,"21C"]
[]
["21C1","   of which: intra-group, mortgage and houding credit corporations",null,null,null,"21C1"]
[]
[22,"Repayments in the reporting period",null,null,null,22,"22=22A+22B+22C"]
[]
["22A","Finance leasing corporations",null,null,null,"22A"]
[]
["22A1","   of which: intra-group, financial leasing corporations",null,null,null,"22A1"]
[]
["22B","Factoring corporations",null,null,null,"22B"]
[]
["22B1","   of which: intra-group, factoring corporation",null,null,null,"22B1"]
[]
["22C","Mortgage and housing credit corporations",null,null,null,"22C"]
[]
["22C1","   of which: intra-group, mortgage and houding credit corporations",null,null,null,"22C1"]
[]
[23,"Net loan sales (-), purchases (+) and other transfers during the reporting period",null,null,null,23]
[]
[24,"Other adjustments to the amount outstanding: reductions (-) and increases (+) ",null,null,null,24]
[]
["24A","   of which: write-offs ",null,null,null,"24A"]
[]
[null,"Please see Form NL guidelines for the definition of 'intra-group'."]

{"sheet":"XML","index":5,"n_rows":81,"n_cols":1,"rows_kept":81,"cut":false,"hidden":true,"merged":[]}
["<?xml version=\"1.0\" encoding=\"utf-8\"?>"]
[{"$f":"CONCATENATE(\"<form name=\"\"NL\"\" reportingInstitution=\"\"\",'Front Sheet'!D7,\"\"\" reportingDate=\"\"\",TEXT('Front Sheet'!D10,\"YYYY-MM-DD\"),\"\"\" xmlns=\"\"urn:boe:beers:1\"\">\")","v":"<form name=\"NL\" reportingInstitution=\"\" reportingDate=\"1900-01-00\" xmlns=\"urn:boe:beers:1\">"}]
[{"$f":"IF('Page 1'!E7=\"\",\"\",CONCATENATE(\"  <position boxCode=\"\"NL£1\"\" value=\"\"\",'Page 1'!E7,\"\"\" />\"))","v":""}]
[{"$f":"IF('Page 1'!E9=\"\",\"\",CONCATENATE(\"  <position boxCode=\"\"NL£1A\"\" value=\"\"\",'Page 1'!E9,\"\"\" />\"))","v":""}]
[{"$f":"IF('Page 1'!E11=\"\",\"\",CONCATENATE(\"  <position boxCode=\"\"NL£2\"\" value=\"\"\",'Page 1'!E11,\"\"\" />\"))","v":""}]
[{"$f":"IF('Page 1'!E13=\"\",\"\",CONCATENATE(\"  <position boxCode=\"\"NL£2A\"\" value=\"\"\",'Page 1'!E13,\"\"\" />\"))","v":""}]
[{"$f":"IF('Page 1'!E15=\"\",\"\",CONCATENATE(\"  <position boxCode=\"\"NL£3\"\" value=\"\"\",'Page 1'!E15,\"\"\" />\"))","v":""}]
[{"$f":"IF('Page 1'!E17=\"\",\"\",CONCATENATE(\"  <position boxCode=\"\"NL£3A\"\" value=\"\"\",'Page 1'!E17,\"\"\" />\"))","v":""}]
[{"$f":"IF('Page 1'!E19=\"\",\"\",CONCATENATE(\"  <position boxCode=\"\"NL£4\"\" value=\"\"\",'Page 1'!E19,\"\"\" />\"))","v":""}]
[{"$f":"IF('Page 1'!E21=\"\",\"\",CONCATENATE(\"  <position boxCode=\"\"NL£4A\"\" value=\"\"\",'Page 1'!E21,\"\"\" />\"))","v":""}]
[{"$f":"IF('Page 1'!E26=\"\",\"\",CONCATENATE(\"  <position boxCode=\"\"NL£5\"\" value=\"\"\",'Page 1'!E26,\"\"\" />\"))","v":""}]
[{"$f":"IF('Page 1'!E28=\"\",\"\",CONCATENATE(\"  <position boxCode=\"\"NL£5A\"\" value=\"\"\",'Page 1'!E28,\"\"\" />\"))","v":""}]
[{"$f":"IF('Page 1'!E30=\"\",\"\",CONCATENATE(\"  <position boxCode=\"\"NL£6\"\" value=\"\"\",'Page 1'!E30,\"\"\" />\"))","v":""}]
[{"$f":"IF('Page 1'!E32=\"\",\"\",CONCATENATE(\"  <position boxCode=\"\"NL£6A\"\" value=\"\"\",'Page 1'!E32,\"\"\" />\"))","v":""}]
[{"$f":"IF('Page 1'!E34=\"\",\"\",CONCATENATE(\"  <position boxCode=\"\"NL£7\"\" value=\"\"\",'Page 1'!E34,\"\"\" />\"))","v":""}]
[{"$f":"IF('Page 1'!E36=\"\",\"\",CONCATENATE(\"  <position boxCode=\"\"NL£7A\"\" value=\"\"\",'Page 1'!E36,\"\"\" />\"))","v":""}]
[{"$f":"IF('Page 1'!E38=\"\",\"\",CONCATENATE(\"  <position boxCode=\"\"NL£8A\"\" value=\"\"\",'Page 1'!E38,\"\"\" />\"))","v":""}]
[{"$f":"IF('Page 1'!E40=\"\",\"\",CONCATENATE(\"  <position boxCode=\"\"NL£8A1\"\" value=\"\"\",'Page 1'!E40,\"\"\" />\"))","v":""}]
[{"$f":"IF('Page 1'!E42=\"\",\"\",CONCATENATE(\"  <position boxCode=\"\"NL£8B\"\" value=\"\"\",'Page 1'!E42,\"\"\" />\"))","v":""}]
[{"$f":"IF('Page 1'!E44=\"\",\"\",CONCATENATE(\"  <position boxCode=\"\"NL£8B1\"\" value=\"\"\",'Page 1'!E44,\"\"\" />\"))","v":""}]
[{"$f":"IF('Page 2'!E7=\"\",\"\",CONCATENATE(\"  <position boxCode=\"\"NL£9\"\" value=\"\"\",'Page 2'!E7,\"\"\" />\"))","v":""}]
[{"$f":"IF('Page 2'!E9=\"\",\"\",CONCATENATE(\"  <position boxCode=\"\"NL£9A\"\" value=\"\"\",'Page 2'!E9,\"\"\" />\"))","v":""}]
[{"$f":"IF('Page 2'!E11=\"\",\"\",CONCATENATE(\"  <position boxCode=\"\"NL£10\"\" value=\"\"\",'Page 2'!E11,\"\"\" />\"))","v":""}]
[{"$f":"IF('Page 2'!E13=\"\",\"\",CONCATENATE(\"  <position boxCode=\"\"NL£10A\"\" value=\"\"\",'Page 2'!E13,\"\"\" />\"))","v":""}]
[{"$f":"IF('Page 2'!E15=\"\",\"\",CONCATENATE(\"  <position boxCode=\"\"NL£11\"\" value=\"\"\",'Page 2'!E15,\"\"\" />\"))","v":""}]
[{"$f":"IF('Page 2'!E17=\"\",\"\",CONCATENATE(\"  <position boxCode=\"\"NL£11A\"\" value=\"\"\",'Page 2'!E17,\"\"\" />\"))","v":""}]
[{"$f":"IF('Page 2'!E19=\"\",\"\",CONCATENATE(\"  <position boxCode=\"\"NL£12\"\" value=\"\"\",'Page 2'!E19,\"\"\" />\"))","v":""}]
[{"$f":"IF('Page 2'!E21=\"\",\"\",CONCATENATE(\"  <position boxCode=\"\"NL£12A\"\" value=\"\"\",'Page 2'!E21,\"\"\" />\"))","v":""}]
[{"$f":"IF('Page 2'!E26=\"\",\"\",CONCATENATE(\"  <position boxCode=\"\"NL£13\"\" value=\"\"\",'Page 2'!E26,\"\"\" />\"))","v":""}]
[{"$f":"IF('Page 2'!E28=\"\",\"\",CONCATENATE(\"  <position boxCode=\"\"NL£13A\"\" value=\"\"\",'Page 2'!E28,\"\"\" />\"))","v":""}]
[{"$f":"IF('Page 2'!E30=\"\",\"\",CONCATENATE(\"  <position boxCode=\"\"NL£14\"\" value=\"\"\",'Page 2'!E30,\"\"\" />\"))","v":""}]
[{"$f":"IF('Page 2'!E32=\"\",\"\",CONCATENATE(\"  <position boxCode=\"\"NL£14A\"\" value=\"\"\",'Page 2'!E32,\"\"\" />\"))","v":""}]
[{"$f":"IF('Page 2'!E34=\"\",\"\",CONCATENATE(\"  <position boxCode=\"\"NL£15\"\" value=\"\"\",'Page 2'!E34,\"\"\" />\"))","v":""}]
[{"$f":"IF('Page 2'!E36=\"\",\"\",CONCATENATE(\"  <position boxCode=\"\"NL£15A\"\" value=\"\"\",'Page 2'!E36,\"\"\" />\"))","v":""}]
[{"$f":"IF('Page 2'!E38=\"\",\"\",CONCATENATE(\"  <position boxCode=\"\"NL£16A\"\" value=\"\"\",'Page 2'!E38,\"\"\" />\"))","v":""}]
[{"$f":"IF('Page 2'!E40=\"\",\"\",CONCATENATE(\"  <position boxCode=\"\"NL£16A1\"\" value=\"\"\",'Page 2'!E40,\"\"\" />\"))","v":""}]
[{"$f":"IF('Page 2'!E42=\"\",\"\",CONCATENATE(\"  <position boxCode=\"\"NL£16B\"\" value=\"\"\",'Page 2'!E42,\"\"\" />\"))","v":""}]
[{"$f":"IF('Page 2'!E44=\"\",\"\",CONCATENATE(\"  <position boxCode=\"\"NL£16B1\"\" value=\"\"\",'Page 2'!E44,\"\"\" />\"))","v":""}]
[{"$f":"IF('Page 2'!E47=\"\",\"\",CONCATENATE(\"  <position boxCode=\"\"NL£27\"\" value=\"\"\",'Page 2'!E47,\"\"\" />\"))","v":""}]
[{"$f":"IF('Page 3'!E7=\"\",\"\",CONCATENATE(\"  <position boxCode=\"\"NL£17\"\" value=\"\"\",'Page 3'!E7,\"\"\" />\"))","v":""}]
[{"$f":"IF('Page 3'!E9=\"\",\"\",CONCATENATE(\"  <position boxCode=\"\"NL£17A\"\" value=\"\"\",'Page 3'!E9,\"\"\" />\"))","v":""}]
[{"$f":"IF('Page 3'!E11=\"\",\"\",CONCATENATE(\"  <position boxCode=\"\"NL£17A1\"\" value=\"\"\",'Page 3'!E11,\"\"\" />\"))","v":""}]
[{"$f":"IF('Page 3'!E13=\"\",\"\",CONCATENATE(\"  <position boxCode=\"\"NL£17B\"\" value=\"\"\",'Page 3'!E13,\"\"\" />\"))","v":""}]
[{"$f":"IF('Page 3'!E15=\"\",\"\",CONCATENATE(\"  <position boxCode=\"\"NL£17B1\"\" value=\"\"\",'Page 3'!E15,\"\"\" />\"))","v":""}]
[{"$f":"IF('Page 3'!E17=\"\",\"\",CONCATENATE(\"  <position boxCode=\"\"NL£17C\"\" value=\"\"\",'Page 3'!E17,\"\"\" />\"))","v":""}]
[{"$f":"IF('Page 3'!E19=\"\",\"\",CONCATENATE(\"  <position boxCode=\"\"NL£17C1\"\" value=\"\"\",'Page 3'!E19,\"\"\" />\"))","v":""}]
[{"$f":"IF('Page 3'!E22=\"\",\"\",CONCATENATE(\"  <position boxCode=\"\"NL£18\"\" value=\"\"\",'Page 3'!E22,\"\"\" />\"))","v":""}]
[{"$f":"IF('Page 3'!E24=\"\",\"\",CONCATENATE(\"  <position boxCode=\"\"NL£18A\"\" value=\"\"\",'Page 3'!E24,\"\"\" />\"))","v":""}]
[{"$f":"IF('Page 3'!E26=\"\",\"\",CONCATENATE(\"  <position boxCode=\"\"NL£18A1\"\" value=\"\"\",'Page 3'!E26,\"\"\" />\"))","v":""}]
[{"$f":"IF('Page 3'!E28=\"\",\"\",CONCATENATE(\"  <position boxCode=\"\"NL£18B\"\" value=\"\"\",'Page 3'!E28,\"\"\" />\"))","v":""}]
[{"$f":"IF('Page 3'!E30=\"\",\"\",CONCATENATE(\"  <position boxCode=\"\"NL£18B1\"\" value=\"\"\",'Page 3'!E30,\"\"\" />\"))","v":""}]
[{"$f":"IF('Page 3'!E32=\"\",\"\",CONCATENATE(\"  <position boxCode=\"\"NL£18C\"\" value=\"\"\",'Page 3'!E32,\"\"\" />\"))","v":""}]
[{"$f":"IF('Page 3'!E34=\"\",\"\",CONCATENATE(\"  <position boxCode=\"\"NL£18C1\"\" value=\"\"\",'Page 3'!E34,\"\"\" />\"))","v":""}]
[{"$f":"IF('Page 3'!E37=\"\",\"\",CONCATENATE(\"  <position boxCode=\"\"NL£19\"\" value=\"\"\",'Page 3'!E37,\"\"\" />\"))","v":""}]
[{"$f":"IF('Page 3'!E39=\"\",\"\",CONCATENATE(\"  <position boxCode=\"\"NL£20\"\" value=\"\"\",'Page 3'!E39,\"\"\" />\"))","v":""}]
[{"$f":"IF('Page 3'!E41=\"\",\"\",CONCATENATE(\"  <position boxCode=\"\"NL£20A\"\" value=\"\"\",'Page 3'!E41,\"\"\" />\"))","v":""}]
[{"$f":"IF('Page 3'!E43=\"\",\"\",CONCATENATE(\"  <position boxCode=\"\"NL£20A1\"\" value=\"\"\",'Page 3'!E43,\"\"\" />\"))","v":""}]
[{"$f":"IF('Page 3'!E45=\"\",\"\",CONCATENATE(\"  <position boxCode=\"\"NL£20B\"\" value=\"\"\",'Page 3'!E45,\"\"\" />\"))","v":""}]
[{"$f":"IF('Page 3'!E47=\"\",\"\",CONCATENATE(\"  <position boxCode=\"\"NL£20B1\"\" value=\"\"\",'Page 3'!E47,\"\"\" />\"))","v":""}]
[{"$f":"IF('Page 3'!E49=\"\",\"\",CONCATENATE(\"  <position boxCode=\"\"NL£20C\"\" value=\"\"\",'Page 3'!E49,\"\"\" />\"))","v":""}]
[{"$f":"IF('Page 3'!E51=\"\",\"\",CONCATENATE(\"  <position boxCode=\"\"NL£20C1\"\" value=\"\"\",'Page 3'!E51,\"\"\" />\"))","v":""}]
[{"$f":"IF('Page 3'!E56=\"\",\"\",CONCATENATE(\"  <position boxCode=\"\"NL£21\"\" value=\"\"\",'Page 3'!E56,\"\"\" />\"))","v":""}]
[{"$f":"IF('Page 3'!E58=\"\",\"\",CONCATENATE(\"  <position boxCode=\"\"NL£21A\"\" value=\"\"\",'Page 3'!E58,\"\"\" />\"))","v":""}]
[{"$f":"IF('Page 3'!E60=\"\",\"\",CONCATENATE(\"  <position boxCode=\"\"NL£21A1\"\" value=\"\"\",'Page 3'!E60,\"\"\" />\"))","v":""}]
[{"$f":"IF('Page 3'!E62=\"\",\"\",CONCATENATE(\"  <position boxCode=\"\"NL£21B\"\" value=\"\"\",'Page 3'!E62,\"\"\" />\"))","v":""}]
[{"$f":"IF('Page 3'!E64=\"\",\"\",CONCATENATE(\"  <position boxCode=\"\"NL£21B1\"\" value=\"\"\",'Page 3'!E64,\"\"\" />\"))","v":""}]
[{"$f":"IF('Page 3'!E66=\"\",\"\",CONCATENATE(\"  <position boxCode=\"\"NL£21C\"\" value=\"\"\",'Page 3'!E66,\"\"\" />\"))","v":""}]
[{"$f":"IF('Page 3'!E68=\"\",\"\",CONCATENATE(\"  <position boxCode=\"\"NL£21C1\"\" value=\"\"\",'Page 3'!E68,\"\"\" />\"))","v":""}]
[{"$f":"IF('Page 3'!E70=\"\",\"\",CONCATENATE(\"  <position boxCode=\"\"NL£22\"\" value=\"\"\",'Page 3'!E70,\"\"\" />\"))","v":""}]
[{"$f":"IF('Page 3'!E72=\"\",\"\",CONCATENATE(\"  <position boxCode=\"\"NL£22A\"\" value=\"\"\",'Page 3'!E72,\"\"\" />\"))","v":""}]
[{"$f":"IF('Page 3'!E74=\"\",\"\",CONCATENATE(\"  <position boxCode=\"\"NL£22A1\"\" value=\"\"\",'Page 3'!E74,\"\"\" />\"))","v":""}]
[{"$f":"IF('Page 3'!E76=\"\",\"\",CONCATENATE(\"  <position boxCode=\"\"NL£22B\"\" value=\"\"\",'Page 3'!E76,\"\"\" />\"))","v":""}]
[{"$f":"IF('Page 3'!E78=\"\",\"\",CONCATENATE(\"  <position boxCode=\"\"NL£22B1\"\" value=\"\"\",'Page 3'!E78,\"\"\" />\"))","v":""}]
[{"$f":"IF('Page 3'!E80=\"\",\"\",CONCATENATE(\"  <position boxCode=\"\"NL£22C\"\" value=\"\"\",'Page 3'!E80,\"\"\" />\"))","v":""}]
[{"$f":"IF('Page 3'!E82=\"\",\"\",CONCATENATE(\"  <position boxCode=\"\"NL£22C1\"\" value=\"\"\",'Page 3'!E82,\"\"\" />\"))","v":""}]
[{"$f":"IF('Page 3'!E84=\"\",\"\",CONCATENATE(\"  <position boxCode=\"\"NL£23\"\" value=\"\"\",'Page 3'!E84,\"\"\" />\"))","v":""}]
[{"$f":"IF('Page 3'!E86=\"\",\"\",CONCATENATE(\"  <position boxCode=\"\"NL£24\"\" value=\"\"\",'Page 3'!E86,\"\"\" />\"))","v":""}]
[{"$f":"IF('Page 3'!E88=\"\",\"\",CONCATENATE(\"  <position boxCode=\"\"NL£24A\"\" value=\"\"\",'Page 3'!E88,\"\"\" />\"))","v":""}]
[{"$f":"IF('Front Sheet'!E17=\"\",\"\",CONCATENATE(\"  <position boxCode=\"\"NL£25\"\" value=\"\"\",'Front Sheet'!E17,\"\"\" />\"))","v":""}]
[{"$f":"IF('Front Sheet'!E19=\"\",\"\",CONCATENATE(\"  <position boxCode=\"\"NL£26\"\" value=\"\"\",'Front Sheet'!E19,\"\"\" />\"))","v":""}]
["</form>"]